bitfinex/quotes_SOLUSD_20250307
["timestamp","ask_amount","ask_price","bid_price","bid_amount"]
[1741349770881,82.1,144.09,144.06,0.033]
[1741349771392,96.14021114,144.09,144.06,0.033]
[1741349771594,96.14021114,144.09,144.07,0.14216157]
[1741349771781,96.14021114,144.08,144.07,0.14216157]
[1741349772264,96.14021114,144.08,144.06,0.033]
[1741349772465,82.1,144.07,144.06,0.033]
[1741349774973,82.1,144.07,144.06,312.17516157]
[1741349776582,82.1,144.07,144.06,0.17516157]
[1741349778091,82.1,144.07,144.06,7.11666157]
[1741349778290,82.1,144.07,144.06,0.17516157]
[1741349778868,82.1,144.07,144.06,7.11666157]
[1741349779509,82.1,144.07,144.06,319.11666157]
[1741349780594,82.1,144.1,144.07,0.14216157]
[1741349780795,82.1,144.09,144.07,0.14216157]
[1741349781012,96.14021114,144.09,144.07,0.14216157]
[1741349781170,14.04021114,144.08,144.07,0.14216157]
[1741349781370,14.04021114,144.08,144.06,0.033]
[1741349782507,96.14021114,144.09,144.06,0.033]
[1741349783103,14.04021114,144.08,144.06,0.033]
[1741349783597,96.14021114,144.09,144.06,0.033]
[1741349783789,82.1,144.07,144.06,312.17516157]
[1741349784295,82.1,144.07,144.06,0.17516157]
[1741349787403,82.1,144.07,144.06,312.17516157]
[1741349787702,82.1,144.07,144.06,0.17516157]
[1741349790314,14.04021114,144.07,144.06,0.033]
[1741349791588,32.68986,144.07,144.06,0.033]
[1741349795306,14.04021114,144.07,144.06,0.033]
[1741349795495,15.54041114,144.08,144.06,0.033]
[1741349796107,14.04021114,144.07,144.06,0.033]
[1741349796400,14.04021114,144.07,144.06,312.17516157]
[1741349796607,14.04021114,144.07,144.06,0.17516157]
[1741349798719,32.68986,144.07,144.04,0.033]
[1741349798883,32.68986,144.05,144.04,0.033]
[1741349799280,32.83202157,144.05,144.04,0.0001]
[1741349799723,32.68986,144.05,144.04,0.0001]
[1741349800086,14.04021114,144.05,144.04,0.0001]
[1741349800292,14.04021114,144.06,144.04,0.0001]
[1741349800501,38.80986,144.07,144.04,0.0001]
[1741349801509,14.04021114,144.06,144.04,0.0001]
[1741349802082,32.68986,144.05,144.04,0.0001]
[1741349804892,32.83202157,144.05,144.04,0.0001]
[1741349805404,0.14216157,144.04,144.03,0.0001]
[1741349805608,32.83202157,144.04,144.03,0.0001]
[1741349805786,32.68986,144.04,144.03,0.0001]
[1741349808498,82.0999,144.03,144.01,0.14216157]
[1741349808696,82.0999,144.03,144.0,7.11946157]
[1741349808905,82.0999,144.03,144.0,21.15967271]
[1741349809089,82.0999,144.03,144.0,0.17516157]
[1741349809518,82.0999,144.03,144.0,0.033]
[1741349810207,82.0999,144.03,144.0,0.17516157]
[1741349810391,82.0999,144.03,144.01,14.04021114]
[1741349810714,82.0999,144.03,144.02,0.14216157]
[1741349811517,82.0999,144.06,144.02,7.08556157]
[1741349811717,82.0999,144.05,144.04,312.14216157]
[1741349813115,96.14011114,144.05,144.04,312.14216157]
[1741349813317,32.68986,144.05,144.04,0.14216157]
[1741349813499,18.64964886,144.04,144.0,0.033]
[1741349813698,14.04021114,144.03,144.0,0.033]
[1741349813911,96.14021114,144.02,144.0,0.033]
[1741349814110,96.14021114,144.01,144.0,0.033]
[1741349814495,32.68986,144.01,144.0,0.033]
[1741349814907,14.04021114,144.01,144.0,0.033]
[1741349815499,14.04021114,144.02,144.0,0.033]
[1741349816423,14.04021114,144.02,144.0,0.17516157]
[1741349816622,18.64964886,144.04,144.0,0.17516157]
[1741349816623,14.04021114,144.01,144.0,0.17516157]
[1741349817234,14.04021114,144.03,144.0,0.033]
[1741349818508,14.04021114,144.01,144.0,0.033]
[1741349819111,14.04021114,144.01,143.99,0.033]
[1741349819322,34.04021114,144.0,143.99,0.033]
[1741349819621,18.64964886,143.99,143.97,0.033]
[1741349819830,14.04021114,143.98,143.97,0.033]
[1741349820000,32.68986,143.98,143.97,0.033]
[1741349820919,41.5243448,143.98,143.97,0.033]
[1741349821502,8.8344848,143.98,143.97,0.033]
[1741349821710,32.68986,143.99,143.97,0.033]
[1741349822314,9.29288782,144.03,143.97,0.17516157]
[1741349822531,32.71986,144.04,143.98,14.18237271]
[1741349822826,0.03,144.04,143.98,14.18237271]
[1741349823012,82.1,144.03,144.0,0.14216157]
[1741349823216,82.1,144.02,144.0,0.14216157]
[1741349823825,82.1,144.02,144.01,14.18237271]
[1741349824037,0.03,144.04,144.01,0.14216157]
[1741349824205,20.0,143.93,143.92,0.033]
[1741349824525,18.64964886,143.92,143.84,32.92769649]
[1741349824827,18.64964886,143.92,143.85,0.14216157]
[1741349825033,40.68089099,143.92,143.85,0.14216157]
[1741349825333,40.68089099,143.92,143.86,312.0]
[1741349825633,40.68089099,143.92,143.88,10.89645436]
[1741349825831,104.13124213,143.93,143.89,0.14216157]
[1741349826131,18.64964886,143.95,143.89,0.14216157]
[1741349826316,22.03124213,143.94,143.89,0.14216157]
[1741349826713,82.1,143.96,143.91,0.17516157]
[1741349827123,104.13124213,143.96,143.91,0.17516157]
[1741349827326,104.13124213,143.96,143.91,0.033]
[1741349828827,104.13124213,143.96,143.93,0.14216157]
[1741349829236,104.13124213,143.96,143.91,0.033]
[1741349829936,22.03124213,143.95,143.91,0.033]
[1741349830835,104.13124213,143.96,143.91,0.033]
[1741349831130,104.13124213,143.96,143.91,0.17516157]
[1741349832245,104.13124213,143.96,143.94,0.14216157]
[1741349832409,82.1,143.95,143.94,0.14216157]
[1741349832607,82.1,143.95,143.9,22.06424213]
[1741349832831,82.1,143.95,143.85,22.03124213]
[1741349832832,20.0,143.87,143.73,10.89645436]
[1741349833127,22.03124213,143.79,143.73,10.89645436]
[1741349833336,1.1690878,143.78,143.73,10.89645436]
[1741349833844,1.1690878,143.79,143.72,32.92769649]
[1741349834329,23.20032993,143.79,143.72,32.92769649]
[1741349834718,22.03124213,143.82,143.75,22.03124213]
[1741349834922,1.1690878,143.81,143.75,22.03124213]
[1741349835430,22.03124213,143.83,143.76,22.03124213]
[1741349835632,1.1690878,143.82,143.79,312.0]
[1741349836018,23.20032993,143.82,143.79,312.0]
[1741349836216,1.1690878,143.82,143.79,312.0]
[1741349836725,36.46053067,143.82,143.79,312.0]
[1741349837739,82.1,143.81,143.79,312.0]
[1741349837943,117.39144287,143.8,143.79,312.0]
[1741349839551,82.1,143.79,143.72,35.29144287]
[1741349839729,118.56053067,143.78,143.72,41.95144287]
[1741349839924,118.56053067,143.78,143.72,35.29144287]
[1741349840130,35.29144287,143.77,143.71,41.95144287]
[1741349840349,118.56053067,143.78,143.72,35.29144287]
[1741349840550,82.1,143.78,143.73,35.29144287]
[1741349840758,82.1,143.77,143.73,35.29144287]
[1741349841431,82.1,143.77,143.74,35.29144287]
[1741349842439,82.1,143.77,143.75,312.0]
[1741349842835,82.1,143.77,143.76,0.14216157]
[1741349844355,82.1,143.77,143.73,20.0]
[1741349844557,82.1,143.76,143.74,0.14216157]
[1741349845937,82.1,143.76,143.75,312.14216157]
[1741349848954,82.1,143.76,143.75,0.14216157]
[1741349849148,117.39144287,143.76,143.75,0.14216157]
[1741349849378,35.29144287,143.76,143.75,0.14216157]
[1741349849839,35.29144287,143.76,143.72,0.033]
[1741349850042,36.46053067,143.75,143.72,0.033]
[1741349850270,1.1690878,143.75,143.72,0.033]
[1741349850966,35.29144287,143.77,143.72,0.033]
[1741349851171,36.46053067,143.76,143.72,0.033]
[1741349851859,36.46053067,143.76,143.73,0.14216157]
[1741349852368,36.46053067,143.76,143.72,0.033]
[1741349855083,82.1,143.75,143.72,0.033]
[1741349855370,82.1,143.74,143.73,312.14216157]
[1741349861257,82.1,143.74,143.73,0.14216157]
[1741349862384,82.1,143.74,143.73,7.09956157]
[1741349862683,82.1,143.74,143.73,0.14216157]
[1741349864386,82.1,143.74,143.73,312.14216157]
[1741349864570,82.1,143.74,143.73,319.09956157]
[1741349866265,82.1,143.74,143.73,312.14216157]
[1741349868667,82.1,143.74,143.73,312.0]
[1741349869075,82.1,143.74,143.73,312.14216157]
[1741349873098,122.8280087,143.74,143.72,0.033]
[1741349873408,123.9970965,143.73,143.72,0.033]
[1741349874721,41.8970965,143.73,143.72,0.033]
[1741349877119,42.03925807,143.73,143.72,0.033]
[1741349877916,19.81873666,143.73,143.72,0.033]
[1741349878094,41.8970965,143.73,143.72,0.033]
[1741349880109,42.03925807,143.73,143.72,0.033]
[1741349880307,41.8970965,143.73,143.72,0.033]
[1741349892611,82.1,143.69,143.59,6.5169168]
[1741349892814,18.79181043,143.59,143.57,0.033]
[1741349893022,123.9970965,143.58,143.57,0.033]
[1741349893323,123.9970965,143.58,143.57,0.0001]
[1741349893324,124.13925807,143.58,143.57,0.0001]
[1741349893634,70.79761791,143.58,143.57,0.0001]
[1741349895310,75.96694624,143.58,143.57,0.0001]
[1741349896715,85.11506433,143.58,143.57,0.0001]
[1741349897411,87.11506433,143.58,143.57,0.0001]
[1741349897614,87.77467626,143.58,143.57,0.0001]
[1741349897808,85.77467626,143.58,143.57,0.0001]
[1741349898131,85.77467626,143.58,143.47,1.8961881]
[1741349898313,22.07835984,143.49,143.47,1.8961881]
[1741349898515,23.24744764,143.48,143.47,1.8961881]
[1741349898913,23.24744764,143.48,143.47,2.03834967]
[1741349899234,22.07835984,143.49,143.48,0.14216157]
[1741349899618,22.07835984,143.5,143.48,0.14216157]
[1741349899819,1.1690878,143.49,143.48,0.14216157]
[1741349900027,22.07835984,143.5,143.48,0.14216157]
[1741349900615,82.1,143.49,143.48,0.14216157]
[1741349903336,104.17835984,143.49,143.48,0.14216157]
[1741349904242,22.07835984,143.49,143.47,1.8961881]
[1741349904440,23.24744764,143.48,143.47,1.8961881]
[1741349904917,23.24744764,143.48,143.47,2.03834967]
[1741349905117,23.24744764,143.48,143.47,1.8961881]
[1741349905320,23.24744764,143.48,143.47,2.03834967]
[1741349906339,23.24744764,143.48,143.47,1.8961881]
[1741349906845,23.24744764,143.48,143.47,2.03834967]
[1741349907030,23.24744764,143.48,143.47,1.8961881]
[1741349907355,23.24744764,143.48,143.45,0.14216157]
[1741349907543,23.24744764,143.48,143.4,28.70465984]
[1741349907544,22.07835984,143.46,143.4,28.70465984]
[1741349907739,1.1690878,143.45,143.41,0.14216157]
[1741349907941,23.24744764,143.45,143.4,6.6263]
[1741349908146,1.1690878,143.45,143.4,28.70465984]
[1741349908447,1.1690878,143.45,143.41,0.14216157]
[1741349908856,82.1,143.44,143.41,0.14216157]
[1741349909230,82.1,143.4,143.29,6.5897]
[1741349909430,83.2690878,143.39,143.33,22.07835984]
[1741349909655,83.2690878,143.39,143.34,0.14216157]
[1741349909842,83.2690878,143.39,143.33,22.07835984]
[1741349910038,83.2690878,143.39,143.35,0.14216157]
[1741349910359,82.1,143.39,143.36,22.07835984]
[1741349910533,83.2690878,143.41,143.36,22.07835984]
[1741349911150,105.34744764,143.41,143.36,0.14216157]
[1741349911642,82.1,143.41,143.36,0.14216157]
[1741349911967,104.17835984,143.41,143.36,0.14216157]
[1741349912141,82.1,143.41,143.36,22.22052141]
[1741349912844,22.07835984,143.39,143.36,0.14216157]
[1741349913038,1.1690878,143.38,143.35,312.0]
[1741349913238,22.07835984,143.38,143.35,312.0]
[1741349913441,22.07835984,143.38,143.36,0.033]
[1741349913654,1.1690878,143.4,143.36,0.033]
[1741349913655,22.07835984,143.39,143.36,0.033]
[1741349913959,82.1,143.38,143.36,0.033]
[1741349914162,23.24744764,143.4,143.36,0.033]
[1741349914163,1.1690878,143.4,143.36,0.033]
[1741349914344,105.34744764,143.41,143.36,0.033]
[1741349914661,82.1,143.41,143.37,0.14216157]
[1741349915960,104.17835984,143.43,143.38,0.14216157]
[1741349916136,82.1,143.43,143.38,0.14216157]
[1741349916335,83.2690878,143.43,143.38,0.14216157]
[1741349916834,105.34744764,143.43,143.38,312.14216157]
[1741349917034,104.17835984,143.43,143.38,319.11646157]
[1741349917434,82.1,143.43,143.38,341.19482141]
[1741349917859,22.07835984,143.45,143.38,341.19482141]
[1741349918163,22.07835984,143.45,143.4,0.14216157]
[1741349918463,23.24744764,143.45,143.4,0.14216157]
[1741349918649,23.24744764,143.45,143.39,0.14216157]
[1741349918836,23.24744764,143.45,143.39,22.22052141]
[1741349919039,23.24744764,143.45,143.4,6.9735]
[1741349919253,23.24744764,143.45,143.41,0.14216157]
[1741349919254,22.07835984,143.45,143.41,0.14216157]
[1741349919561,82.1,143.45,143.41,0.14216157]
[1741349920637,82.1,143.45,143.41,29.19342141]
[1741349920839,82.1,143.47,143.44,0.14216157]
[1741349921742,82.1,143.47,143.44,22.22052141]
[1741349922537,82.1,143.47,143.44,29.19182141]
[1741349922752,82.1,143.47,143.44,7.11346157]
[1741349923344,104.17835984,143.47,143.44,0.14216157]
[1741349924052,104.17835984,143.47,143.44,7.11346157]
[1741349924268,104.17835984,143.47,143.43,7.11396157]
[1741349924743,83.2690878,143.46,143.42,6.64]
[1741349924946,82.1,143.45,143.4,6.62]
[1741349925261,83.2690878,143.44,143.39,22.22052141]
[1741349925435,82.1,143.44,143.4,22.22052141]
[1741349926149,104.17835984,143.48,143.42,22.22052141]
[1741349926338,83.2990878,143.47,143.42,22.22052141]
[1741349926539,83.2990878,143.47,143.42,0.14216157]
[1741349926739,83.2990878,143.47,143.42,22.22052141]
[1741349927166,83.2990878,143.47,143.42,341.19272141]
[1741349927569,83.2990878,143.47,143.42,319.11436157]
[1741349928182,105.37744764,143.47,143.42,0.14216157]
[1741349928469,22.07835984,143.46,143.41,0.14216157]
[1741349928769,1.1690878,143.45,143.41,0.14216157]
[1741349928970,83.2690878,143.45,143.41,0.14216157]
[1741349929157,105.34744764,143.45,143.4,0.14216157]
[1741349929465,82.1,143.44,143.39,22.07835984]
[1741349929763,83.2690878,143.43,143.39,0.14216157]
[1741349930178,82.1,143.42,143.37,6.6575]
[1741349930468,105.34744764,143.41,143.36,0.033]
[1741349930642,104.17835984,143.4,143.36,0.033]
[1741349930838,105.34744764,143.39,143.36,0.033]
[1741349931043,82.1,143.38,143.36,0.033]
[1741349931443,82.1,143.38,143.33,318.1485]
[1741349931444,82.1,143.38,143.33,6.1485]
[1741349931676,83.2690878,143.37,143.32,0.21324235]
[1741349931971,82.1,143.37,143.33,22.22052141]
[1741349932178,1.1690878,143.38,143.33,0.14216157]
[1741349932179,82.1,143.36,143.33,0.14216157]
[1741349932359,82.1,143.36,143.32,0.21324235]
[1741349932670,82.1,143.36,143.32,29.26880219]
[1741349933172,82.1,143.36,143.33,0.14216157]
[1741349933371,82.1,143.36,143.33,7.11896157]
[1741349933874,82.1,143.36,143.33,29.19732141]
[1741349934074,82.1,143.36,143.35,0.14216157]
[1741349934380,82.1,143.36,143.35,22.22052141]
[1741349934881,82.1,143.36,143.35,0.14216157]
[1741349935167,82.1,143.36,143.34,22.22052141]
[1741349936051,82.1,143.36,143.34,29.19642141]
[1741349936254,82.1,143.36,143.34,0.14216157]
[1741349936569,82.1,143.36,143.33,29.05505984]
[1741349936957,82.1,143.36,143.34,0.14216157]
[1741349937154,83.2690878,143.38,143.34,0.14216157]
[1741349937571,5.13656682,143.37,143.34,312.14216157]
[1741349938473,5.13656682,143.37,143.34,319.11846157]
[1741349938650,5.13656682,143.37,143.34,341.19682141]
[1741349938852,5.13656682,143.36,143.34,341.19682141]
[1741349940453,5.13656682,143.35,143.34,319.11846157]
[1741349940767,5.13656682,143.35,143.34,341.19682141]
[1741349941552,5.13656682,143.35,143.34,334.22052141]
[1741349942394,5.13656682,143.35,143.34,341.19692141]
[1741349942572,5.13656682,143.35,143.34,312.14216157]
[1741349942952,5.13656682,143.35,143.32,0.21324235]
[1741349943259,5.13656682,143.35,143.31,22.07835984]
[1741349943771,5.13656682,143.35,143.32,0.14216157]
[1741349944273,5.13656682,143.34,143.33,22.22052141]
[1741349945685,5.13656682,143.34,143.33,29.19742141]
[1741349946060,5.13656682,143.34,143.33,341.19742141]
[1741349946465,82.1,143.39,143.34,0.14216157]
[1741349946673,82.1,143.39,143.36,0.14216157]
[1741349947578,5.16334062,143.38,143.36,0.14216157]
[1741349947771,5.16334062,143.38,143.36,7.11756157]
[1741349948273,5.16334062,143.38,143.36,29.19592141]
[1741349948602,5.16334062,143.37,143.36,7.11756157]
[1741349949291,5.16334062,143.37,143.36,0.14216157]
[1741349949592,5.16334062,143.37,143.35,0.14216157]
[1741349950100,5.16334062,143.37,143.34,6.7]
[1741349950275,1.1690878,143.38,143.34,6.7]
[1741349950470,1.1690878,143.38,143.35,0.14216157]
[1741349951387,1.1690878,143.39,143.35,0.14216157]
[1741349951603,0.03,143.37,143.35,0.14216157]
[1741349951891,5.19334062,143.37,143.35,0.14216157]
[1741349952062,5.19334062,143.37,143.36,22.22052141]
[1741349952691,82.1,143.35,143.33,0.033]
[1741349952900,105.34744764,143.34,143.33,0.033]
[1741349953282,29.23766157,143.33,143.22,1.04679362]
[1741349953468,20.0,143.27,143.14,22.07835984]
[1741349953795,22.07835984,143.23,143.16,22.07835984]
[1741349953968,1.1690878,143.22,143.15,22.07835984]
[1741349954296,1.1690878,143.22,143.17,22.07835984]
[1741349954799,1.1690878,143.22,143.16,29.39835984]
[1741349954966,5.16334062,143.21,143.2,312.0]
[1741349955162,27.24170046,143.21,143.1,6.1863]
[1741349955381,1.1690878,143.2,143.14,22.07835984]
[1741349955593,27.24170046,143.21,143.18,23.97454794]
[1741349955594,5.16334062,143.21,143.18,23.97454794]
[1741349955793,5.16334062,143.21,143.2,22.22052141]
[1741349956370,5.16334062,143.25,143.21,0.14216157]
[1741349956569,5.16334062,143.25,143.24,35.68828742]
[1741349956890,5.16334062,143.25,143.24,43.02828742]
[1741349957575,1.1690878,143.3,143.25,0.14216157]
[1741349957767,35.54612585,143.28,143.25,0.14216157]
[1741349958283,35.54612585,143.29,143.26,0.14216157]
[1741349958462,82.1,143.28,143.26,0.14216157]
[1741349958667,82.1,143.28,143.24,0.14216157]
[1741349959097,82.1,143.28,143.22,35.54612585]
[1741349959098,82.1,143.23,143.18,1.8961881]
[1741349959278,35.54612585,143.19,143.18,1.8961881]
[1741349962006,1.1690878,143.21,143.18,1.8961881]
[1741349962299,20.25494886,143.25,143.18,1.8961881]
[1741349962300,35.54612585,143.22,143.18,1.8961881]
[1741349962511,35.54612585,143.19,143.18,1.8961881]
[1741349963579,35.54612585,143.19,143.18,2.03834967]
[1741349964494,35.54612585,143.19,143.18,1.8961881]
[1741349965314,35.54612585,143.19,143.18,8.81e-05]
[1741349965797,36.71521365,143.19,143.18,8.81e-05]
[1741349966189,36.71521365,143.19,143.14,312.0]
[1741349966391,35.54612585,143.17,143.15,0.14216157]
[1741349968592,35.54612585,143.18,143.15,0.14216157]
[1741349969710,1.1690878,143.17,143.15,0.14216157]
[1741349970405,35.54612585,143.18,143.15,0.14216157]
[1741349970790,35.54612585,143.19,143.13,35.68828742]
[1741349970987,1.1690878,143.18,143.13,35.68828742]
[1741349971191,83.2690878,143.19,143.15,0.14216157]
[1741349971794,46.55387415,143.14,143.0,2.0]
[1741349972002,35.54612585,143.08,143.01,35.54612585]
[1741349972201,1.1690878,143.07,143.01,35.54612585]
[1741349972509,35.54612585,143.08,143.02,55.54612585]
[1741349972697,35.54612585,143.1,143.03,35.54612585]
[1741349973007,36.71521365,143.09,143.04,0.14216157]
[1741349973208,2.0,142.95,142.85,6.646]
[1741349973424,2.0,142.98,142.87,35.54612585]
[1741349973718,1.1690878,143.02,142.97,18.64964886]
[1741349974013,2.0,143.1,143.01,35.54612585]
[1741349974308,2.0,143.1,142.98,26.62964886]
[1741349974309,2.0,143.07,143.02,35.54612585]
[1741349974606,2.0,143.08,143.02,35.54612585]
[1741349974805,2.0,143.08,143.04,35.54612585]
[1741349975007,2.0,143.08,143.05,0.14216157]
[1741349975584,2.0,143.08,143.04,0.14216157]
[1741349975891,26.92567089,143.11,143.06,35.68828742]
[1741349976210,2.0,143.1,143.06,35.68828742]
[1741349976415,2.0,143.1,143.06,0.14216157]
[1741349976792,2.0,143.08,143.06,0.14216157]
[1741349976999,2.0,143.08,143.05,0.14216157]
[1741349977203,2.0,143.08,143.07,312.14216157]
[1741349977496,1.1690878,143.1,143.07,312.14216157]
[1741349977704,24.92567089,143.11,143.08,35.68828742]
[1741349978009,24.92567089,143.11,143.1,35.68828742]
[1741349978414,24.92567089,143.11,143.1,0.14216157]
[1741349979412,24.92567089,143.11,143.1,35.68828742]
[1741349979626,24.92567089,143.11,143.1,0.14216157]
[1741349980114,24.92567089,143.11,143.1,35.68828742]
[1741349980711,24.92567089,143.11,143.1,347.68828742]
[1741349981215,24.92567089,143.11,143.1,312.14216157]
[1741349981414,24.92567089,143.11,143.1,347.68828742]
[1741349983127,2.0,143.15,143.1,347.68828742]
[1741349983301,2.0,143.15,143.11,0.14216157]
[1741349983614,2.0,143.15,143.13,0.14216157]
[1741349983794,2.0,143.16,143.13,0.14216157]
[1741349984298,2.0,143.15,143.13,0.14216157]
[1741349984705,2.0,143.16,143.13,0.14216157]
[1741349985500,2.0,143.15,143.1,6.988]
[1741349985815,2.0,143.16,143.13,0.14216157]
[1741349985995,2.0,143.15,143.13,0.14216157]
[1741349986195,2.0,143.16,143.15,0.14216157]
[1741349988011,36.71521365,143.18,143.13,0.14216157]
[1741349988012,2.0,143.15,143.13,0.14216157]
[1741349988222,2.0,143.14,143.09,7.98]
[1741349988398,2.0,143.12,143.09,43.52612585]
[1741349988596,2.0,143.12,143.1,35.54612585]
[1741349988817,2.0,143.12,143.11,0.14216157]
[1741349989021,2.0,143.13,143.11,0.14216157]
[1741349989226,2.0,143.13,143.11,35.68828742]
[1741349989724,2.0,143.13,143.11,0.14216157]
[1741349989929,2.0,143.12,143.08,35.54612585]
[1741349990417,2.0,143.12,143.1,0.14216157]
[1741349990620,2.0,143.12,143.09,35.54612585]
[1741349990825,48.55387415,143.15,143.11,35.54612585]
[1741349991008,48.55387415,143.15,143.12,35.68828742]
[1741349991194,48.55387415,143.15,143.12,347.68828742]
[1741349991195,2.0,143.15,143.12,347.68828742]
[1741349991397,2.0,143.14,143.12,312.14216157]
[1741349991618,2.0,143.14,143.08,0.14216157]
[1741349991914,2.0,143.13,143.1,35.68828742]
[1741349993131,2.0,143.13,143.09,6.9884]
[1741349993132,2.0,143.12,143.09,0.14216157]
[1741349993333,2.0,143.14,143.12,0.14216157]
[1741349993523,2.0,143.14,143.12,35.68828742]
[1741349994727,2.0,143.14,143.13,312.14216157]
[1741349995108,2.0,143.15,143.14,0.14216157]
[1741349995906,2.0,143.17,143.14,35.68828742]
[1741349996107,2.0,143.22,143.17,0.28432314]
[1741349996400,2.0,143.21,143.19,0.14216157]
[1741349996609,2.0,143.21,143.19,35.68828742]
[1741349996816,2.0,143.24,143.21,0.14216157]
[1741349997014,2.0,143.23,143.21,35.68828742]
[1741349997438,2.0,143.26,143.23,0.14216157]
[1741349997632,2.0,143.26,143.23,35.68828742]
[1741349997930,2.0,143.26,143.23,42.66988742]
[1741349998124,2.0,143.26,143.23,354.66988742]
[1741349998432,2.0,143.26,143.23,347.68828742]
[1741349998630,5.14000283,143.25,143.23,354.66998742]
[1741349998811,5.14000283,143.25,143.23,347.68828742]
[1741349999425,5.14000283,143.25,143.2,7.76]
[1741349999426,5.14000283,143.25,143.24,35.68828742]
[1741349999816,2.0,143.26,143.25,0.14216157]
[1741350000015,2.0,143.26,143.25,35.68828742]
[1741350000611,2.0,143.27,143.25,35.68828742]
[1741350000826,7.14018584,143.26,143.23,35.54612585]
[1741350001026,2.0,143.24,143.21,0.14216157]
[1741350001828,2.0,143.19,143.14,172.6406]
[1741350002027,2.0,143.18,143.15,35.54612585]
[1741350002242,2.0,143.16,143.13,35.57912585]
[1741350002476,2.0,143.16,143.14,0.14216157]
[1741350002611,2.0,143.16,143.15,35.68828742]
[1741350002805,2.0,143.19,143.15,35.54612585]
[1741350003010,18.67964886,143.25,143.17,35.54612585]
[1741350003011,2.0,143.2,143.17,35.54612585]
[1741350003235,2.0,143.2,143.18,0.14216157]
[1741350003427,2.0,143.21,143.18,0.14216157]
[1741350003733,2.0,143.21,143.2,0.14216157]
[1741350004138,3.1690878,143.21,143.17,0.14216157]
[1741350004431,2.0,143.19,143.17,0.14216157]
[1741350004622,2.0,143.18,143.17,0.14216157]
[1741350004837,2.0,143.19,143.17,0.14216157]
[1741350005414,2.0,143.19,143.16,0.14216157]
[1741350005632,2.0,143.18,143.16,0.14216157]
[1741350006023,2.0,143.17,143.16,312.14216157]
[1741350006229,2.0,143.17,143.16,312.0]
[1741350006423,2.0,143.15,143.13,0.033]
[1741350006748,2.0,143.14,143.13,0.033]
[1741350006917,2.0,143.14,143.13,0.17516157]
[1741350007533,2.0,143.14,143.13,0.033]
[1741350007839,2.0,143.16,143.13,0.17516157]
[1741350008036,2.0,143.16,143.13,35.72128742]
[1741350008223,2.0,143.15,143.13,0.17516157]
[1741350008426,2.0,143.14,143.13,0.033]
[1741350009320,38.71521365,143.14,143.13,0.033]
[1741350009521,38.71521365,143.14,143.09,312.0]
[1741350009829,2.0,143.1,143.09,312.0]
[1741350010155,2.0,143.07,143.06,7.66]
[1741350010534,2.0,143.07,143.05,35.54612585]
[1741350010735,2.0,143.07,143.04,43.20612585]
[1741350011137,2.0,143.07,143.04,35.54612585]
[1741350011623,2.0,143.1,143.07,0.14216157]
[1741350011818,2.0,143.1,143.09,0.14216157]
[1741350012147,2.0,143.11,143.09,0.14216157]
[1741350012647,2.0,143.1,143.09,0.14216157]
[1741350012842,1.1690878,143.14,143.09,0.14216157]
[1741350012843,2.0,143.11,143.09,0.14216157]
[1741350013020,2.0,143.11,143.09,312.14216157]
[1741350013224,2.0,143.14,143.11,0.14216157]
[1741350013422,2.0,143.14,143.13,0.14216157]
[1741350013624,2.0,143.16,143.13,35.68828742]
[1741350013832,2.0,143.16,143.15,0.14216157]
[1741350014641,2.0,143.16,143.14,35.54612585]
[1741350014642,2.0,143.15,143.13,35.68828742]
[1741350014843,2.03,143.16,143.13,35.68828742]
[1741350015760,2.03,143.16,143.1,0.14216157]
[1741350015954,2.03,143.16,143.14,0.14216157]
[1741350016434,2.03,143.16,143.15,312.14216157]
[1741350017747,0.03,143.16,143.15,43.26828742]
[1741350018352,0.03,143.16,143.15,50.25388742]
[1741350019850,0.03,143.16,143.15,50.39604899]
[1741350020044,0.03,143.16,143.15,85.94217484]
[1741350020769,0.03,143.16,143.15,397.94217484]
[1741350021135,0.03,143.16,143.15,362.25388742]
[1741350021339,0.03,143.16,143.15,355.26828742]
[1741350021782,0.03,143.16,143.15,362.25388742]